[Event "*** Titled Tuesday Blitz"]
[Site "Chess.com"]
[Date "2018.10.02"]
[Round "1"]
[White "NemtsevIgor"]
[Black "severomorskij"]
[Result "0-1"]
[WhiteElo "2378"]
[BlackElo "2704"]
[TimeControl "180+2"]
[EndTime "13:09:44 PDT"]
[Termination "severomorskij won by resignation"]

1. d4 {[%clk 0:03:00.4]} 1... Nf6 {[%clk 0:03:00.6]} 2. Nc3 {[%clk 0:03:00]}
2... d5 {[%clk 0:03:00.7]} 3. e4 {[%clk 0:03:01.1]} 3... dxe4 {[%clk 0:02:55.8]}
4. Be3 {[%clk 0:03:00.5]} 4... Bf5 {[%clk 0:02:53.6]} 5. f3 {[%clk 0:03:00]}
5... e6 {[%clk 0:02:52.1]} 6. a3 {[%clk 0:02:52.6]} 6... Be7 {[%clk 0:02:44.5]}
7. g4 {[%clk 0:02:50.6]} 7... Bg6 {[%clk 0:02:44.8]} 8. h4 {[%clk 0:02:51.4]}
8... Nd5 {[%clk 0:02:29.6]} 9. Nxd5 {[%clk 0:02:36.5]} 9... Bxh4+ {[%clk
0:02:21.7]} 10. Rxh4 {[%clk 0:02:33.3]} 10... Qxh4+ {[%clk 0:02:22.4]} 11. Bf2
{[%clk 0:02:34.5]} 11... Qd8 {[%clk 0:02:23.3]} 12. Nc3 {[%clk 0:02:27.4]} 12...
exf3 {[%clk 0:02:18.4]} 13. Nxf3 {[%clk 0:02:27]} 13... c6 {[%clk 0:02:13.9]}
14. Bd3 {[%clk 0:02:25.7]} 14... Nd7 {[%clk 0:02:12.2]} 15. Qe2 {[%clk
0:02:24.2]} 15... Qc7 {[%clk 0:01:58.7]} 16. O-O-O {[%clk 0:02:20.8]} 16... Qf4+
{[%clk 0:01:52]} 17. Be3 {[%clk 0:02:20.8]} 17... Bxd3 {[%clk 0:01:43.2]} 18.
Rxd3 {[%clk 0:02:10]} 18... Qxg4 {[%clk 0:01:42.4]} 19. Qf2 {[%clk 0:02:02.9]}
19... h5 {[%clk 0:01:33.7]} 20. Rd1 {[%clk 0:01:59.2]} 20... O-O-O {[%clk
0:01:22.3]} 21. Rg1 {[%clk 0:01:57.5]} 21... Qf5 {[%clk 0:01:22.7]} 22. Rxg7
{[%clk 0:01:53.9]} 22... Rdg8 {[%clk 0:01:10.2]} 23. Qg3 {[%clk 0:01:36.4]}
23... Rxg7 {[%clk 0:01:09.5]} 24. Qxg7 {[%clk 0:01:37.3]} 24... Qf6 {[%clk
0:01:09.7]} 25. Qg3 {[%clk 0:01:26.5]} 25... h4 {[%clk 0:00:54.9]} 26. Qh3
{[%clk 0:01:26.1]} 26... Qf5 {[%clk 0:00:47.7]} 27. Qxf5 {[%clk 0:01:06.1]}
27... exf5 {[%clk 0:00:48.3]} 28. Bf4 {[%clk 0:01:04.4]} 28... h3 {[%clk
0:00:45.8]} 29. Ne2 {[%clk 0:01:03.1]} 29... Nf6 {[%clk 0:00:33.8]} 30. Kd2
{[%clk 0:00:49.5]} 30... Ng4 {[%clk 0:00:31.5]} 31. Nh2 {[%clk 0:00:49.5]} 31...
Rg8 {[%clk 0:00:22.7]} 32. Nf3 {[%clk 0:00:39.5]} 32... Rh8 {[%clk 0:00:23.4]}
33. Nh2 {[%clk 0:00:40.4]} 33... Nxh2 {[%clk 0:00:24.5]} 34. Bxh2 {[%clk
0:00:41]} 34... Kd7 {[%clk 0:00:19.7]} 35. Nf4 {[%clk 0:00:41.7]} 35... Ke7
{[%clk 0:00:19.1]} 36. Ke3 {[%clk 0:00:42.9]} 36... Kf6 {[%clk 0:00:19.1]} 37.
Kf3 {[%clk 0:00:44]} 37... Kg5 {[%clk 0:00:10]} 38. Kg3 {[%clk 0:00:37.9]} 38...
Kf6 {[%clk 0:00:10.4]} 39. Nxh3 {[%clk 0:00:35.5]} 39... Re8 {[%clk 0:00:04.8]}
40. Kf3 {[%clk 0:00:32.5]} 40... Ke6 {[%clk 0:00:05.3]} 41. Ng5+ {[%clk
0:00:29]} 41... Kf6 {[%clk 0:00:05.3]} 42. Nh3 {[%clk 0:00:30.2]} 42... Ke6
{[%clk 0:00:04.1]} 43. Bf4 {[%clk 0:00:29.7]} 43... f6 {[%clk 0:00:04.9]} 44.
Nf2 {[%clk 0:00:30]} 44... Rh8 {[%clk 0:00:05.8]} 45. c4 {[%clk 0:00:27.1]}
45... Rh7 {[%clk 0:00:06.9]} 46. b4 {[%clk 0:00:26.6]} 46... a6 {[%clk
0:00:07.2]} 47. Ke3 {[%clk 0:00:24.1]} 47... b5 {[%clk 0:00:07.6]} 48. cxb5
{[%clk 0:00:20.9]} 48... axb5 {[%clk 0:00:07.8]} 49. Nd3 {[%clk 0:00:22.5]}
49... Ra7 {[%clk 0:00:07.4]} 50. Bd6 {[%clk 0:00:20.6]} 50... Kxd6 {[%clk
0:00:07.8]} 51. Kf4 {[%clk 0:00:21.3]} 51... Rxa3 {[%clk 0:00:07.7]} 52. Nc5
{[%clk 0:00:22.5]} 52... Ra4 {[%clk 0:00:08.9]} 53. Kxf5 {[%clk 0:00:23.4]}
53... Rxb4 {[%clk 0:00:10]} 54. Kxf6 {[%clk 0:00:24.6]} 54... Rxd4 {[%clk
0:00:10.5]} 55. Nb7+ {[%clk 0:00:24.9]} 55... Kd5 {[%clk 0:00:11.4]} 0-1

[Event "*** Titled Tuesday Blitz"]
[Site "Chess.com"]
[Date "2018.10.02"]
[Round "1"]
[White "335394862"]
[Black "PulpanJ"]
[Result "1-0"]
[WhiteElo "2333"]
[BlackElo "2599"]
[TimeControl "180+2"]
[EndTime "13:09:45 PDT"]
[Termination "335394862 won on time"]

1. e4 {[%clk 0:03:01.9]} 1... c5 {[%clk 0:02:56.7]} 2. Nf3 {[%clk 0:03:02.7]}
2... d6 {[%clk 0:02:57.7]} 3. Bb5+ {[%clk 0:03:00.6]} 3... Bd7 {[%clk
0:02:56.8]} 4. Bxd7+ {[%clk 0:03:01]} 4... Nxd7 {[%clk 0:02:58.7]} 5. c4 {[%clk
0:03:02.1]} 5... Ngf6 {[%clk 0:02:59.8]} 6. Nc3 {[%clk 0:03:03.4]} 6... g6
{[%clk 0:02:59.7]} 7. d4 {[%clk 0:03:04.5]} 7... cxd4 {[%clk 0:03:01.6]} 8. Nxd4
{[%clk 0:03:06.2]} 8... Bg7 {[%clk 0:03:02.8]} 9. Be3 {[%clk 0:03:07.6]} 9...
O-O {[%clk 0:03:03.7]} 10. O-O {[%clk 0:03:08.6]} 10... Qa5 {[%clk 0:03:04.6]}
11. f3 {[%clk 0:03:08.2]} 11... Rfc8 {[%clk 0:03:04.2]} 12. Qe2 {[%clk 0:03:08]}
12... a6 {[%clk 0:03:02.8]} 13. Rac1 {[%clk 0:03:06.8]} 13... Ne5 {[%clk
0:03:00.2]} 14. b3 {[%clk 0:03:06.2]} 14... Nc6 {[%clk 0:03:00.7]} 15. Rfd1
{[%clk 0:03:06.4]} 15... Qh5 {[%clk 0:02:35.9]} 16. Na4 {[%clk 0:02:57.2]} 16...
Nd7 {[%clk 0:02:35]} 17. Nxc6 {[%clk 0:02:51.3]} 17... Rxc6 {[%clk 0:02:15.3]}
18. Rd5 {[%clk 0:02:51.3]} 18... e5 {[%clk 0:02:10.5]} 19. Rcd1 {[%clk
0:02:48.3]} 19... Bf8 {[%clk 0:02:08.7]} 20. Nc3 {[%clk 0:02:45.6]} 20... b5
{[%clk 0:02:04.7]} 21. Nb1 {[%clk 0:02:17.3]} 21... bxc4 {[%clk 0:02:02.6]} 22.
bxc4 {[%clk 0:02:19.2]} 22... Nb6 {[%clk 0:02:01.2]} 23. Bxb6 {[%clk 0:02:14.6]}
23... Rxb6 {[%clk 0:02:03.1]} 24. Nc3 {[%clk 0:02:13.2]} 24... Rc6 {[%clk
0:01:52.5]} 25. Ra5 {[%clk 0:02:08.1]} 25... Rac8 {[%clk 0:01:52.4]} 26. Nd5
{[%clk 0:02:09.2]} 26... Qg5 {[%clk 0:01:53.4]} 27. c5 {[%clk 0:02:04.9]} 27...
Rxc5 {[%clk 0:01:42.2]} 28. Rxc5 {[%clk 0:02:00.6]} 28... Rxc5 {[%clk
0:01:44.1]} 29. Qxa6 {[%clk 0:02:01.5]} 29... Rc2 {[%clk 0:01:44.1]} 30. Qf1
{[%clk 0:01:51.2]} 30... Rxa2 {[%clk 0:01:44.2]} 31. Rb1 {[%clk 0:01:43.6]}
31... Qd2 {[%clk 0:01:40.4]} 32. Rd1 {[%clk 0:01:27.1]} 32... Qb2 {[%clk
0:01:36.2]} 33. Kh1 {[%clk 0:01:24.3]} 33... h5 {[%clk 0:01:30.5]} 34. Rb1
{[%clk 0:01:19.5]} 34... Qf2 {[%clk 0:01:23.3]} 35. Qxf2 {[%clk 0:01:13.2]}
35... Rxf2 {[%clk 0:01:25.2]} 36. Kg1 {[%clk 0:01:14.5]} 36... Ra2 {[%clk
0:01:23.9]} 37. Rb8 {[%clk 0:01:14.1]} 37... Kg7 {[%clk 0:01:20.6]} 38. h4
{[%clk 0:01:00.6]} 38... Ra7 {[%clk 0:01:20.3]} 39. Kh2 {[%clk 0:01:00.9]} 39...
Be7 {[%clk 0:01:14.1]} 40. Kh3 {[%clk 0:01:00]} 40... Bf8 {[%clk 0:00:56.3]} 41.
Kg3 {[%clk 0:00:57.4]} 41... Rd7 {[%clk 0:00:54.6]} 42. Kh3 {[%clk 0:00:57.8]}
42... f5 {[%clk 0:00:52.7]} 43. Nb6 {[%clk 0:00:29.8]} 43... Rf7 {[%clk
0:00:51.5]} 44. Kg3 {[%clk 0:00:24.4]} 44... fxe4 {[%clk 0:00:51.8]} 45. fxe4
{[%clk 0:00:26.3]} 45... Rf4 {[%clk 0:00:50.2]} 46. Nd5 {[%clk 0:00:20.7]} 46...
Rf7 {[%clk 0:00:43.5]} 47. Re8 {[%clk 0:00:19.4]} 47... Kh6 {[%clk 0:00:41.7]}
48. Re6 {[%clk 0:00:20]} 48... Rd7 {[%clk 0:00:39.8]} 49. Nf6 {[%clk 0:00:18.7]}
49... Kg7 {[%clk 0:00:40.5]} 50. Nxd7 {[%clk 0:00:19.3]} 50... Kf7 {[%clk
0:00:40.6]} 51. Nxf8 {[%clk 0:00:20.3]} 1-0

[Event "*** Titled Tuesday Blitz"]
[Site "Chess.com"]
[Date "2018.10.02"]
[Round "1"]
[White "Aklanion"]
[Black "FancyPlaySyndrome"]
[Result "1/2-1/2"]
[WhiteElo "2145"]
[BlackElo "2534"]
[TimeControl "180+2"]
[EndTime "13:09:58 PDT"]
[Termination "Game drawn by stalemate"]

1. d4 {[%clk 0:02:59.7]} 1... g6 {[%clk 0:03:00.8]} 2. Nf3 {[%clk 0:02:58.3]}
2... Bg7 {[%clk 0:03:02.3]} 3. g3 {[%clk 0:02:57.7]} 3... d6 {[%clk 0:03:03.4]}
4. Bg2 {[%clk 0:02:58.5]} 4... Nf6 {[%clk 0:03:05.2]} 5. O-O {[%clk 0:02:59.8]}
5... O-O {[%clk 0:03:06.7]} 6. c4 {[%clk 0:03:00.7]} 6... Nc6 {[%clk 0:03:07.1]}
7. Nc3 {[%clk 0:03:00.4]} 7... Bf5 {[%clk 0:03:05.7]} 8. b3 {[%clk 0:02:52.4]}
8... Ne4 {[%clk 0:03:06.8]} 9. Bb2 {[%clk 0:02:50.8]} 9... Nxc3 {[%clk
0:03:07.7]} 10. Bxc3 {[%clk 0:02:52.7]} 10... Be4 {[%clk 0:03:09.6]} 11. Qd2
{[%clk 0:02:49]} 11... d5 {[%clk 0:03:09.8]} 12. c5 {[%clk 0:02:38.2]} 12... Re8
{[%clk 0:03:04.4]} 13. b4 {[%clk 0:02:32.1]} 13... e5 {[%clk 0:02:10.9]} 14.
Nxe5 {[%clk 0:02:11.5]} 14... Nxe5 {[%clk 0:02:06.5]} 15. dxe5 {[%clk 0:02:09]}
15... Bxg2 {[%clk 0:02:07.1]} 16. Kxg2 {[%clk 0:02:10.6]} 16... Bxe5 {[%clk
0:02:08.8]} 17. Bxe5 {[%clk 0:02:05.2]} 17... Rxe5 {[%clk 0:02:09.4]} 18. e3
{[%clk 0:02:02.2]} 18... c6 {[%clk 0:02:10.5]} 19. a4 {[%clk 0:02:01.1]} 19...
Qe7 {[%clk 0:02:06.3]} 20. Rfc1 {[%clk 0:01:56.6]} 20... h5 {[%clk 0:01:59]} 21.
h4 {[%clk 0:01:52.2]} 21... Rd8 {[%clk 0:01:56.3]} 22. b5 {[%clk 0:01:52]} 22...
Re4 {[%clk 0:01:46.5]} 23. bxc6 {[%clk 0:01:49.9]} 23... bxc6 {[%clk 0:01:47.6]}
24. Qa5 {[%clk 0:01:19]} 24... d4 {[%clk 0:01:43.9]} 25. exd4 {[%clk 0:01:18.4]}
25... Rdxd4 {[%clk 0:01:45.1]} 26. Re1 {[%clk 0:01:16.2]} 26... Rd5 {[%clk
0:01:38.8]} 27. Kg1 {[%clk 0:01:04.3]} 27... Rde5 {[%clk 0:01:10.9]} 28. Rxe4
{[%clk 0:00:57.7]} 28... Rxe4 {[%clk 0:01:12.8]} 29. Rd1 {[%clk 0:00:54.6]}
29... Rc4 {[%clk 0:01:09.6]} 30. Qd8+ {[%clk 0:00:29.5]} 30... Qxd8 {[%clk
0:01:10.5]} 31. Rxd8+ {[%clk 0:00:31.4]} 31... Kg7 {[%clk 0:01:12]} 32. Rc8
{[%clk 0:00:18.6]} 32... Rxc5 {[%clk 0:01:13.1]} 33. Rc7 {[%clk 0:00:19.5]}
33... a5 {[%clk 0:01:13.5]} 34. Ra7 {[%clk 0:00:20.1]} 34... Kf6 {[%clk
0:01:14.8]} 35. Kg2 {[%clk 0:00:19.9]} 35... Ke6 {[%clk 0:01:16.4]} 36. Kf3
{[%clk 0:00:20.3]} 36... f6 {[%clk 0:01:18]} 37. Rg7 {[%clk 0:00:20.1]} 37... g5
{[%clk 0:01:19.6]} 38. hxg5 {[%clk 0:00:22]} 38... fxg5 {[%clk 0:01:21.5]} 39.
Rh7 {[%clk 0:00:22.4]} 39... g4+ {[%clk 0:01:21.5]} 40. Ke3 {[%clk 0:00:14.9]}
40... Rf5 {[%clk 0:01:21.6]} 41. Ra7 {[%clk 0:00:09.5]} 41... Kd6 {[%clk
0:01:18.4]} 42. Ra6 {[%clk 0:00:07]} 42... Re5+ {[%clk 0:01:03.9]} 43. Kf4
{[%clk 0:00:07.3]} 43... Rc5 {[%clk 0:00:47.7]} 44. Ke3 {[%clk 0:00:08.4]} 44...
Kd5 {[%clk 0:00:46.5]} 45. Ra8 {[%clk 0:00:08.3]} 45... Kc4 {[%clk 0:00:47.1]}
46. Rb8 {[%clk 0:00:08.8]} 46... Kc3 {[%clk 0:00:45.2]} 47. Rb1 {[%clk
0:00:09.3]} 47... Re5+ {[%clk 0:00:45]} 48. Kf4 {[%clk 0:00:09.8]} 48... Re6
{[%clk 0:00:45.5]} 49. Kg5 {[%clk 0:00:08.5]} 49... c5 {[%clk 0:00:41.6]} 50.
Kxh5 {[%clk 0:00:08.3]} 50... c4 {[%clk 0:00:43.1]} 51. Kxg4 {[%clk 0:00:09.7]}
51... Rc6 {[%clk 0:00:41.8]} 52. Kf5 {[%clk 0:00:04.2]} 52... Kc2 {[%clk
0:00:42.5]} 53. Rh1 {[%clk 0:00:04.6]} 53... Kb3 {[%clk 0:00:43.4]} 54. g4
{[%clk 0:00:05.3]} 54... c3 {[%clk 0:00:44.9]} 55. g5 {[%clk 0:00:06.5]} 55...
c2 {[%clk 0:00:45]} 56. g6 {[%clk 0:00:07.6]} 56... c1=Q {[%clk 0:00:46.5]} 57.
Rxc1 {[%clk 0:00:08.9]} 57... Rxc1 {[%clk 0:00:48.4]} 58. g7 {[%clk 0:00:07.4]}
58... Rg1 {[%clk 0:00:49.5]} 59. Kf6 {[%clk 0:00:08.3]} 59... Kxa4 {[%clk
0:00:48.4]} 60. f4 {[%clk 0:00:09.5]} 60... Kb5 {[%clk 0:00:47.5]} 61. f5 {[%clk
0:00:10.7]} 61... a4 {[%clk 0:00:49.2]} 62. Kf7 {[%clk 0:00:12.1]} 62... a3
{[%clk 0:00:49.8]} 63. g8=Q {[%clk 0:00:13.5]} 63... Rxg8 {[%clk 0:00:50.4]} 64.
Kxg8 {[%clk 0:00:15.4]} 64... a2 {[%clk 0:00:52.3]} 65. f6 {[%clk 0:00:16.7]}
65... a1=Q {[%clk 0:00:52.5]} 66. f7 {[%clk 0:00:18]} 66... Qg1+ {[%clk
0:00:54.3]} 67. Kh8 {[%clk 0:00:16.7]} 67... Qd4+ {[%clk 0:00:55.2]} 68. Kg8
{[%clk 0:00:17.4]} 68... Qg4+ {[%clk 0:00:55.6]} 69. Kh8 {[%clk 0:00:17.9]}
69... Qh5+ {[%clk 0:00:56]} 70. Kg8 {[%clk 0:00:18.8]} 70... Qg6+ {[%clk
0:00:57.9]} 71. Kh8 {[%clk 0:00:19.5]} 71... Qxf7 {[%clk 0:00:59.6]} 1/2-1/2

[Event "*** Titled Tuesday Blitz"]
[Site "Chess.com"]
[Date "2018.10.02"]
[Round "1"]
[White "xamax2000"]
[Black "Margency"]
[Result "1-0"]
[WhiteElo "2428"]
[BlackElo "2658"]
[TimeControl "180+2"]
[EndTime "13:10:00 PDT"]
[Termination "xamax2000 won by resignation"]

1. e4 {[%clk 0:03:00.7]} 1... e5 {[%clk 0:03:00.3]} 2. Nf3 {[%clk 0:03:01.3]}
2... Nc6 {[%clk 0:03:01]} 3. Bb5 {[%clk 0:03:02.3]} 3... a6 {[%clk 0:03:01.2]}
4. Ba4 {[%clk 0:03:03.5]} 4... Nf6 {[%clk 0:03:01.7]} 5. O-O {[%clk 0:03:04.7]}
5... Nxe4 {[%clk 0:03:02.7]} 6. Re1 {[%clk 0:03:01.9]} 6... Nc5 {[%clk
0:03:00.2]} 7. Bxc6 {[%clk 0:03:03]} 7... dxc6 {[%clk 0:03:00.7]} 8. Nxe5 {[%clk
0:03:04.1]} 8... Be7 {[%clk 0:03:00.9]} 9. d4 {[%clk 0:03:01.9]} 9... Ne6 {[%clk
0:03:01.2]} 10. Qh5 {[%clk 0:02:56.7]} 10... O-O {[%clk 0:02:58.9]} 11. Be3
{[%clk 0:02:48.2]} 11... f6 {[%clk 0:02:45.1]} 12. Nf3 {[%clk 0:02:43.8]} 12...
Qd5 {[%clk 0:02:44.2]} 13. Qh4 {[%clk 0:02:33.3]} 13... Qf5 {[%clk 0:02:35.6]}
14. Na3 {[%clk 0:01:48.3]} 14... Bxa3 {[%clk 0:02:32.9]} 15. bxa3 {[%clk
0:01:50.2]} 15... Qxc2 {[%clk 0:02:28.6]} 16. Qg3 {[%clk 0:01:43.9]} 16... Bd7
{[%clk 0:02:22.9]} 17. Bf4 {[%clk 0:01:30.3]} 17... Rac8 {[%clk 0:02:15.1]} 18.
Re3 {[%clk 0:01:24.4]} 18... Qf5 {[%clk 0:02:14.2]} 19. Bh6 {[%clk 0:01:14.6]}
19... Qg6 {[%clk 0:02:14.3]} 20. Bf4 {[%clk 0:01:14.3]} 20... Rfe8 {[%clk
0:02:09]} 21. Rae1 {[%clk 0:01:13.2]} 21... Qxg3 {[%clk 0:02:08.6]} 22. Bxg3
{[%clk 0:01:13]} 22... Kf7 {[%clk 0:02:08.9]} 23. Rb3 {[%clk 0:01:01]} 23... b6
{[%clk 0:02:08.2]} 24. Rd3 {[%clk 0:00:54.5]} 24... g5 {[%clk 0:01:58.8]} 25.
Red1 {[%clk 0:00:51.5]} 25... h5 {[%clk 0:01:57]} 26. h4 {[%clk 0:00:52.5]}
26... g4 {[%clk 0:01:57.5]} 27. Nd2 {[%clk 0:00:51.9]} 27... Ng7 {[%clk
0:01:57.1]} 28. Nc4 {[%clk 0:00:45.6]} 28... Nf5 {[%clk 0:01:50.3]} 29. Rc3
{[%clk 0:00:34.7]} 29... Be6 {[%clk 0:01:45.8]} 30. Ne3 {[%clk 0:00:29.2]} 30...
Nxe3 {[%clk 0:01:45.1]} 31. fxe3 {[%clk 0:00:31.1]} 31... Bd5 {[%clk 0:01:45.2]}
32. Kf2 {[%clk 0:00:30.8]} 32... Re7 {[%clk 0:01:45.5]} 33. Bf4 {[%clk
0:00:31.3]} 33... Rce8 {[%clk 0:01:45.3]} 34. Rd2 {[%clk 0:00:31.7]} 34... a5
{[%clk 0:01:45.5]} 35. Rb2 {[%clk 0:00:30.8]} 35... Kg6 {[%clk 0:01:45]} 36. Rd2
{[%clk 0:00:31.6]} 36... Kf5 {[%clk 0:01:45.4]} 37. Rb2 {[%clk 0:00:31.7]} 37...
Re4 {[%clk 0:01:44.4]} 38. g3 {[%clk 0:00:31]} 38... R8e7 {[%clk 0:01:43.9]} 39.
Rd2 {[%clk 0:00:29.6]} 39... R4e6 {[%clk 0:01:43.4]} 40. Rb2 {[%clk 0:00:30.3]}
40... Rd7 {[%clk 0:01:44.3]} 41. Ke2 {[%clk 0:00:30.4]} 41... Ree7 {[%clk
0:01:44.7]} 42. Rbc2 {[%clk 0:00:29.9]} 42... Be4 {[%clk 0:01:44.6]} 43. Rb2
{[%clk 0:00:29.9]} 43... Bf3+ {[%clk 0:01:40.7]} 44. Kd2 {[%clk 0:00:30.5]}
44... Ke4 {[%clk 0:01:40.8]} 45. Rxc6 {[%clk 0:00:29.3]} 45... Kf5 {[%clk
0:01:35.7]} 46. Rb5+ {[%clk 0:00:23.1]} 46... Kg6 {[%clk 0:01:34.8]} 47. Rc3
{[%clk 0:00:21]} 47... Bd5 {[%clk 0:01:29.3]} 48. Rb2 {[%clk 0:00:20.5]} 48...
Be4 {[%clk 0:01:27.8]} 49. Ke2 {[%clk 0:00:21.5]} 49... Kf5 {[%clk 0:01:26.6]}
50. Kf2 {[%clk 0:00:23]} 50... Ke6 {[%clk 0:01:25.4]} 51. Rb5 {[%clk 0:00:24.2]}
51... Bd5 {[%clk 0:01:22.9]} 52. Ke2 {[%clk 0:00:24.1]} 52... Bxa2 {[%clk
0:01:22.5]} 53. Rxh5 {[%clk 0:00:21.7]} 53... Bd5 {[%clk 0:01:22.6]} 54. Rh6
{[%clk 0:00:22.6]} 54... Kf5 {[%clk 0:01:22.7]} 55. h5 {[%clk 0:00:21.1]} 55...
b5 {[%clk 0:01:20.8]} 56. Kd3 {[%clk 0:00:21.6]} 56... b4 {[%clk 0:01:19.7]} 57.
axb4 {[%clk 0:00:21.6]} 57... axb4 {[%clk 0:01:20.6]} 58. Rc5 {[%clk 0:00:23.2]}
58... c6 {[%clk 0:01:21.3]} 59. Rh8 {[%clk 0:00:23.1]} 59... Rb7 {[%clk
0:01:20.5]} 60. Rb8 {[%clk 0:00:22.3]} 60... b3 {[%clk 0:01:19.4]} 61. e4+
{[%clk 0:00:20.2]} 61... Ke6 {[%clk 0:01:17.9]} 62. exd5+ {[%clk 0:00:21.2]}
62... cxd5 {[%clk 0:01:18.9]} 63. Rc6+ {[%clk 0:00:22.2]} 63... Kf7 {[%clk
0:01:19.4]} 64. Rxb7 {[%clk 0:00:23.5]} 64... Rxb7 {[%clk 0:01:20]} 65. Rc7+
{[%clk 0:00:24.9]} 65... Rxc7 {[%clk 0:01:21.2]} 66. Bxc7 {[%clk 0:00:26.8]}
66... Ke6 {[%clk 0:01:21.6]} 67. Bf4 {[%clk 0:00:27.4]} 67... Kf5 {[%clk
0:01:22.3]} 68. h6 {[%clk 0:00:28.8]} 68... Kg6 {[%clk 0:01:23.1]} 69. Kc3
{[%clk 0:00:30.2]} 69... b2 {[%clk 0:01:24.1]} 70. Kxb2 {[%clk 0:00:29]} 1-0

[Event "*** Titled Tuesday Blitz"]
[Site "Chess.com"]
[Date "2018.10.02"]
[Round "1"]
[White "AkibaRubi"]
[Black "Eliwood44"]
[Result "0-1"]
[WhiteElo "2528"]
[BlackElo "2197"]
[TimeControl "180+2"]
[EndTime "13:10:04 PDT"]
[Termination "Eliwood44 won by checkmate"]

1. e4 {[%clk 0:03:00.5]} 1... e5 {[%clk 0:03:00.2]} 2. Nf3 {[%clk 0:02:59.3]}
2... Nc6 {[%clk 0:03:01]} 3. Bb5 {[%clk 0:02:57.5]} 3... a6 {[%clk 0:03:00.8]}
4. Ba4 {[%clk 0:02:57]} 4... Nf6 {[%clk 0:03:01.6]} 5. O-O {[%clk 0:02:56.9]}
5... b5 {[%clk 0:03:02.5]} 6. Bb3 {[%clk 0:02:56.9]} 6... Be7 {[%clk 0:03:04.4]}
7. Re1 {[%clk 0:02:56.3]} 7... O-O {[%clk 0:03:04.5]} 8. c3 {[%clk 0:02:56.6]}
8... d6 {[%clk 0:03:03.8]} 9. d3 {[%clk 0:02:57]} 9... Nb8 {[%clk 0:03:04.1]}
10. Nbd2 {[%clk 0:02:57.7]} 10... Nbd7 {[%clk 0:03:04.1]} 11. Nf1 {[%clk
0:02:58.2]} 11... Re8 {[%clk 0:03:01.8]} 12. Ng3 {[%clk 0:02:47.7]} 12... Nc5
{[%clk 0:03:01.8]} 13. Bc2 {[%clk 0:02:46.4]} 13... Bf8 {[%clk 0:03:01.5]} 14.
h3 {[%clk 0:02:46.8]} 14... Bb7 {[%clk 0:02:59.8]} 15. Be3 {[%clk 0:01:40.1]}
15... Ncd7 {[%clk 0:02:59.6]} 16. Qd2 {[%clk 0:01:35.3]} 16... c5 {[%clk
0:02:54.9]} 17. Nf5 {[%clk 0:01:17.3]} 17... d5 {[%clk 0:02:51.6]} 18. exd5
{[%clk 0:01:10.6]} 18... Bxd5 {[%clk 0:02:52.1]} 19. Qe2 {[%clk 0:00:52.4]}
19... Be6 {[%clk 0:02:46.1]} 20. Ng3 {[%clk 0:00:51.9]} 20... Qc7 {[%clk
0:02:23.2]} 21. Ng5 {[%clk 0:00:50.7]} 21... Bd5 {[%clk 0:02:19.8]} 22. N5e4
{[%clk 0:00:51]} 22... Nxe4 {[%clk 0:02:17.7]} 23. dxe4 {[%clk 0:00:51.4]} 23...
Bc4 {[%clk 0:02:17.1]} 24. Bd3 {[%clk 0:00:51.1]} 24... Bxd3 {[%clk 0:02:17.7]}
25. Qxd3 {[%clk 0:00:51.2]} 25... g6 {[%clk 0:02:18.9]} 26. Rad1 {[%clk
0:00:50.2]} 26... Rad8 {[%clk 0:02:18.9]} 27. Qc2 {[%clk 0:00:49.8]} 27... c4
{[%clk 0:02:18.5]} 28. Ne2 {[%clk 0:00:48.8]} 28... Nc5 {[%clk 0:02:18.7]} 29.
Nc1 {[%clk 0:00:45.9]} 29... Rxd1 {[%clk 0:01:44.9]} 30. Rxd1 {[%clk 0:00:45.1]}
30... Rd8 {[%clk 0:01:46.2]} 31. f3 {[%clk 0:00:44.9]} 31... f6 {[%clk
0:01:44.9]} 32. Rxd8 {[%clk 0:00:36.3]} 32... Qxd8 {[%clk 0:01:45]} 33. Qd2
{[%clk 0:00:35.3]} 33... Qxd2 {[%clk 0:01:42.2]} 34. Bxd2 {[%clk 0:00:35.8]}
34... Na4 {[%clk 0:01:42.4]} 35. b3 {[%clk 0:00:36.3]} 35... Bc5+ {[%clk
0:01:40.1]} 36. Kf1 {[%clk 0:00:36.4]} 36... Nb6 {[%clk 0:01:37.9]} 37. b4
{[%clk 0:00:35.3]} 37... Be7 {[%clk 0:01:37.8]} 38. Ne2 {[%clk 0:00:35.5]} 38...
Kf7 {[%clk 0:01:37.6]} 39. Be3 {[%clk 0:00:36.2]} 39... Na4 {[%clk 0:01:37.4]}
40. Ke1 {[%clk 0:00:36.3]} 40... Ke6 {[%clk 0:01:38.1]} 41. Kd2 {[%clk
0:00:36.8]} 41... Nb2 {[%clk 0:01:37.4]} 42. Nc1 {[%clk 0:00:35.9]} 42... Bd8
{[%clk 0:01:36.8]} 43. Kc2 {[%clk 0:00:34.1]} 43... Na4 {[%clk 0:01:37.9]} 44.
a3 {[%clk 0:00:31.3]} 44... Bb6 {[%clk 0:01:31.5]} 45. Bxb6 {[%clk 0:00:31.1]}
45... Nxb6 {[%clk 0:01:33.4]} 46. Kd2 {[%clk 0:00:31.4]} 46... f5 {[%clk
0:01:33.6]} 47. Ne2 {[%clk 0:00:32.3]} 47... g5 {[%clk 0:01:24.6]} 48. exf5+
{[%clk 0:00:32]} 48... Kxf5 {[%clk 0:01:25.7]} 49. Ng3+ {[%clk 0:00:33.1]} 49...
Kf4 {[%clk 0:01:25.6]} 50. Ne4 {[%clk 0:00:33.3]} 50... Nd5 {[%clk 0:01:21.3]}
51. Nc5 {[%clk 0:00:31.3]} 51... Kg3 {[%clk 0:01:17]} 52. Nxa6 {[%clk
0:00:29.9]} 52... Kxg2 {[%clk 0:01:18.1]} 53. Nc5 {[%clk 0:00:28.1]} 53... Kxf3
{[%clk 0:01:18]} 54. Ne6 {[%clk 0:00:28.2]} 54... h6 {[%clk 0:01:17.1]} 55. Ng7
{[%clk 0:00:23.9]} 55... e4 {[%clk 0:01:17.4]} 56. Nf5 {[%clk 0:00:24.2]} 56...
e3+ {[%clk 0:01:18.4]} 57. Kd1 {[%clk 0:00:23.5]} 57... Kf2 {[%clk 0:01:16.2]}
58. Nd4 {[%clk 0:00:19.1]} 58... Nxc3+ {[%clk 0:01:16.7]} 59. Kc2 {[%clk
0:00:19.8]} 59... e2 {[%clk 0:01:17.7]} 60. Nxe2 {[%clk 0:00:18.3]} 60... Nxe2
{[%clk 0:01:19.6]} 61. Kb2 {[%clk 0:00:17.4]} 61... Nd4 {[%clk 0:01:17.9]} 62.
Kc3 {[%clk 0:00:17.6]} 62... Nc6 {[%clk 0:01:18.3]} 63. a4 {[%clk 0:00:16.7]}
63... bxa4 {[%clk 0:01:19.6]} 64. Kxc4 {[%clk 0:00:17.4]} 64... Nxb4 {[%clk
0:01:20]} 65. Kxb4 {[%clk 0:00:18.3]} 65... Kg3 {[%clk 0:01:21.4]} 66. Kxa4
{[%clk 0:00:19]} 66... Kxh3 {[%clk 0:01:22.4]} 67. Kb4 {[%clk 0:00:18.5]} 67...
Kh2 {[%clk 0:01:23.7]} 68. Kc3 {[%clk 0:00:19.1]} 68... g4 {[%clk 0:01:25.3]}
69. Kd3 {[%clk 0:00:20.2]} 69... g3 {[%clk 0:01:27.2]} 70. Ke3 {[%clk 0:00:19]}
70... g2 {[%clk 0:01:29.1]} 71. Kf3 {[%clk 0:00:19.5]} 71... g1=Q {[%clk
0:01:31]} 72. Kf4 {[%clk 0:00:20.3]} 72... h5 {[%clk 0:01:32.9]} 73. Kf5 {[%clk
0:00:21.2]} 73... h4 {[%clk 0:01:34.8]} 74. Kf6 {[%clk 0:00:21.9]} 74... h3
{[%clk 0:01:36.7]} 75. Kf7 {[%clk 0:00:22.8]} 75... Qg3 {[%clk 0:01:38.3]} 76.
Ke6 {[%clk 0:00:22.9]} 76... Kg2 {[%clk 0:01:40.2]} 77. Kf5 {[%clk 0:00:23.2]}
77... h2 {[%clk 0:01:42.1]} 78. Kf6 {[%clk 0:00:24.2]} 78... Kf3 {[%clk
0:01:44]} 79. Ke6 {[%clk 0:00:24.9]} 79... Qg5 {[%clk 0:01:43.2]} 80. Kd6 {[%clk
0:00:25.1]} 80... h1=Q {[%clk 0:01:44.3]} 81. Kc6 {[%clk 0:00:25.4]} 81... Qhh6+
{[%clk 0:01:45]} 82. Kb7 {[%clk 0:00:26]} 82... Qgg7+ {[%clk 0:01:46.9]} 83. Ka8
{[%clk 0:00:25.4]} 83... Qhh8# {[%clk 0:01:48.8]} 0-1